[Event "1st FIDE Olympiad DIS 2023"]
[Site "Belgrade"]
[Date "2023.02.03"]
[Round "5.8"]
[White "Aleksandrova, Aleksandra"]
[Black "Bernardo, Darry"]
[Result "0-1"]
[ECO "A45"]
[WhiteElo "1701"]
[BlackElo "2070"]
[Annotator "TA"]
[PlyCount "56"]
[EventDate "2023.01.30"]
[EventType "team-tourn"]
[EventCountry "SRB"]
[SourceTitle "playchess.com"]
[Source "ChessBase"]
[SourceQuality "1"]
[WhiteTeam "Israel"]
[BlackTeam "Philippines"]
[WhiteTeamCountry "ISR"]
[BlackTeamCountry "PHI"]
[TimeControl "40/5400+30:1800+30"]

{[%evp 9,56,-14,0,-4,0,-21,-8,-2,0,-8,3,-29,0,0,0,0,0,-25,23,2,39,9,56,0,7,13,18,-215,-216,-216,-219,-200,-224,-220,-219,-252,-245,-259,-198,-293,-291,-323,-275,-268,-283,-265,-274,-1179,-1145]} 1. d4 {[%emt 0:00:04]} d5 {[%emt 0:00:50]} 2. e3 {[%emt 0:00:09]} Nf6 {[%emt 0:00:58]} 3. Nd2 {[%emt 0:00:10]} Nc6 {[%emt 0:05:15]} 4. f4 {[%emt 0:01:48]} Bf5 {[%emt 0:00:14]} 5. c3 {[%emt 0:00:33]} a6 {[%emt 0:00:32] [#]} 6. Be2 $146 {[%emt 0:00:27] A45: Trompowsky Attack.} ({Predecessor:} 6. Ngf3 e6 7. Be2 h6 8. Ne5 Nxe5 9. fxe5 Ne4 10. O-O Be7 11. Nxe4 Bxe4 12. Bd3 Bxd3 13. Qxd3 {½-½ Pereira Lustosa,J (1763)-Andrade Dos Santos,I (1828) Fortaleza Monte Cup 2017 (5)}) 6... e6 {[%emt 0:00:09]} 7. a4 {[%emt 0:01:52]} h6 {[%emt 0:00:11]} 8. Ngf3 {[%emt 0:00:28] The position is equal.} Bd6 {[%emt 0:00:27]} 9. O-O {[%emt 0:04:04]} Ne7 {[%emt 0:06:44]} 10. Ne5 {[%emt 0:03:20]} Ne4 {[%emt 0:05:09]} 11. Nxe4 {[%emt 0:18:15]} Bxe4 {[%emt 0:01:57]} 12. Bd3 {[%emt 0:01:35]} Bxd3 {[%emt 0:04:09]} 13. Qxd3 {[%emt 0:00:19]} f5 {[%emt 0:04:32]} (13... c5 {is more appropriate.}) 14. Nf3 {[%emt 0:04:22]} Ng6 {[%emt 0:06:19]} 15. c4 {[%emt 0:01:51]} c6 {[%emt 0:03:29]} (15... dxc4 $11 16. Qxc4 Qd7) 16. g4 {[%emt 0:03:16]} (16. c5 $14 Bc7 17. b4) 16... O-O $11 {[%emt 0:05:26]} 17. gxf5 {[%emt 0:00:33]} Rxf5 {[%emt 0:01:16]} 18. e4 $2 {[%emt 0:08:55] This move loses the game for White.} (18. c5 $11 {and White is okay.} Bc7 19. Bd2) 18... dxe4 $19 {[%emt 0:05:33]} (18... Nxf4 19. Bxf4 Rxf4 20. cxd5) 19. Qxe4 {[%emt 0:00:02] [#]} Qf6 {[%emt 0:01:19][%cal Rg6f4]} (19... Bxf4 20. Qxe6+ Rf7 21. Qxg6 $18) (19... Nxf4 20. Bxf4 Rxf4 21. Qxe6+ Kh8 22. b3 $15) 20. Ne5 {[%emt 0:08:34]} Nxe5 {[%emt 0:05:34]} 21. dxe5 {[%emt 0:01:01] [#]} Bxe5 {[%emt 0:00:13][%cal Bd6e5,Be5c7,Bc7f4][%mdl 608] Pin} 22. Be3 {[%emt 0:03:38]} (22. Ra3 Bd4+) 22... Rf8 {[%emt 0:03:22]} 23. Rad1 {[%emt 0:16:18]} Bc7 {[%emt 0:16:11]} ({Not} 23... Bxf4 24. Rxf4 Rxf4 25. Bxf4 Qxf4 26. Qxe6+ Kh8 27. Qe2 $19) 24. Rd7 {[%emt 0:04:27]} (24. Rf2 {was called for.}) 24... Rf7 {[%emt 0:00:30]} ({Inferior is} 24... Bxf4 25. Rxf4 Rxf4 26. Bxf4 Qxf4 27. Qxf4 Rxf4 28. Rxb7 $17) 25. Rd2 {[%emt 0:02:33]} Re5 {[%emt 0:06:41]} 26. Qd3 {[%emt 0:07:46] [#]} Rxe3 {[%emt 0:02:44][%mdl 512]} 27. Qxe3 {[%emt 0:00:02]} Bxf4 {[%emt 0:00:13]} 28. Rd8+ $2 {[%emt 0:00:13]} (28. Qxf4 Qxf4 29. Rxf4 Rxf4 30. Rd8+ Kh7 31. Rd7) 28... Qxd8 {[%emt 0:00:32] Weighted Error Value: White=0.66/Black=0.16 (very precise)} 0-1

[Event "1st FIDE Olympiad DIS 2023"]
[Site "Belgrade"]
[Date "2023.02.03"]
[Round "5.9"]
[White "Morales Romero, Pedro"]
[Black "Mikheev, Stanislav"]
[Result "1/2-1/2"]
[ECO "C47"]
[WhiteElo "2339"]
[BlackElo "2300"]
[Annotator "TA"]
[PlyCount "101"]
[EventDate "2023.01.30"]
[EventType "team-tourn"]
[EventCountry "SRB"]
[SourceTitle "playchess.com"]
[Source "ChessBase"]
[SourceQuality "1"]
[WhiteTeam "Cuba"]
[BlackTeam "IPCA"]
[WhiteTeamCountry "CUB"]
[BlackTeamCountry "SRB"]
[TimeControl "40/5400+30:1800+30"]

{[%evp 21,101,-6,-4,0,3,-22,0,0,0,-29,-44,-55,-34,-32,-6,-26,0,-62,0,-9,0,-1,0,-5,-7,-14,-14,-13,-12,-14,-17,-11,-12,-65,-65,-65,-65,-65,-65,-65,-65,-65,-65,-65,-65,-65,-65,-65,-65,-66,-66,-66,-66,-66,0,-5,0,0,0,0,0,0,0,0,0,0,0,0,0,0,0,0,0,0,0,0,0,0,0,0,0,0]} 1. e4 {[%emt 0:00:11]} e5 {[%emt 0:00:23]} 2. Nf3 {[%emt 0:00:15]} Nc6 {[%emt 0:00:17]} 3. d4 {[%emt 0:01:00]} exd4 {[%emt 0:00:11]} 4. Nxd4 {[%emt 0:00:07]} Nf6 {[%emt 0:00:09]} 5. Nc3 {[%emt 0:00:29]} Bb4 {[%emt 0:00:24]} 6. Nxc6 {[%emt 0:00:17]} bxc6 {[%emt 0:00:06]} 7. Bd3 {[%emt 0:00:06]} d5 {[%emt 0:00:21]} 8. exd5 {[%emt 0:00:11]} cxd5 {[%emt 0:00:15]} 9. O-O {[%emt 0:01:54]} O-O {[%emt 0:00:11]} 10. Bg5 {[%emt 0:00:14]} c6 {[%emt 0:00:12]} 11. Na4 {[%emt 0:03:52]} Re8 {[%emt 0:04:53]} 12. c4 {[%emt 0:05:12] C47: Scotch Four Knights and Four Knights with 4 g3.} Bd6 {[%emt 0:03:31]} 13. Rc1 {[%emt 0:03:19]} h6 {[%emt 0:04:13]} 14. Bh4 {[%emt 0:02:15]} Bf4 {[%emt 0:14:12] [#]} 15. Rb1 $146 {[%emt 0:07:46]} ({Predecessor:} 15. Rc2 Qd6 16. Bg3 Bxg3 17. hxg3 Bg4 18. Qc1 d4 19. Qf4 Qb4 20. b3 c5 21. Qd2 Qxd2 22. Rxd2 Rac8 23. Nb2 h5 24. f3 Bd7 25. Kf2 Kf8 26. Bc2 g6 27. b4 cxb4 {½-½ Sanchez,J (2516)-Roiz,M (2649) Cannes op 2011 (8)}) 15... Qd6 {[%emt 0:08:23]} 16. Bg3 {[%emt 0:03:14]} Bxg3 {[%emt 0:02:11]} 17. hxg3 {[%emt 0:00:19]} Rb8 {[%emt 0:10:12]} 18. a3 {[%emt 0:01:41]} Be6 {[%emt 0:02:21]} (18... Ng4 {keeps more tension.} 19. Rc1 Bd7 20. Be2 Qg6) 19. Rc1 {[%emt 0:09:16]} (19. b4 $11) 19... Red8 {[%emt 0:03:49]} (19... Qe5 $15) 20. Qc2 {[%emt 0:08:21]} Ng4 {[%emt 0:02:09]} 21. Rfe1 {[%emt 0:00:40]} Ne5 {[%emt 0:03:45]} 22. cxd5 {[%emt 0:03:07]} (22. c5 $5 Qc7 $8 23. b4 $11) 22... cxd5 {[%emt 0:08:17]} 23. b4 {[%emt 0:02:57] [#]} a5 $1 {[%emt 0:02:24]} 24. bxa5 {[%emt 0:32:18]} Rdc8 {[%emt 0:02:42]} 25. Qd2 {[%emt 0:00:38]} ({Don't go for} 25. Bh7+ $2 Kh8 26. Nc5 Rb5 $19) 25... Rxc1 {[%emt 0:05:15]} 26. Rxc1 {[%emt 0:00:06]} Qxa3 {[%emt 0:00:30]} 27. Nc5 {[%emt 0:08:27]} (27. Bc2 $1 $11) 27... Rc8 $36 {[%emt 0:02:02][%mdl 2048] White is under pressure.} 28. Qe3 {[%emt 0:00:05] [#] Bh7+ is the strong threat.} Nxd3 {[%emt 0:06:03]} 29. Nxd3 {[%emt 0:00:07]} Rxc1+ {[%emt 0:00:11]} (29... Qxa5 $2 30. Rxc8+ Bxc8 31. Qe8+ Kh7 32. Qxc8 $18) 30. Nxc1 {[%emt 0:00:05]} Qxa5 {[%emt 0:00:10][%cal Od5d4][%mdl 4096] Endgame KQB-KQN} 31. Nb3 {[%emt 0:00:22]} Qa3 {[%emt 0:00:33]} 32. Qb6 {[%emt 0:00:12]} Qb2 {[%emt 0:00:40]} 33. Qe3 {[%emt 0:00:10]} Qb1+ {[%emt 0:01:15]} 34. Kh2 {[%emt 0:00:24]} Qe4 {[%emt 0:00:14]} 35. Qb6 {[%emt 0:00:35]} Qe2 {[%emt 0:03:50]} 36. f3 {[%emt 0:01:00]} Qe5 {[%emt 0:02:07]} 37. Nd4 {[%emt 0:00:23]} g5 {[%emt 0:01:02]} (37... Kh7 $15) 38. Qd8+ $1 $11 {[%emt 0:00:35] The position is equal.} Kg7 {[%emt 0:00:19]} 39. Nc6 {[%emt 0:00:34]} Qf6 {[%emt 0:04:26]} 40. Ne7 {[%emt 0:00:13][%csl Ge7][%cal Rd8g8]} h5 {[%emt 0:00:21][%cal Bh6h5,Bh5h4][%mdl 32]} 41. Qg8+ {[%emt 0:32:32]} Kh6 {[%emt 0:30:02]} 42. Qd8 {[%emt 0:00:30] Threatening mate with Ng8+.} Qe5 {[%emt 0:02:50] Threatens to win with ...h4.} 43. Qf8+ {[%emt 0:04:27]} Qg7 {[%emt 0:00:07]} 44. Qb8 {[%emt 0:01:02]} h4 {[%emt 0:03:50]} 45. g4 {[%emt 0:00:00]} Kh7 {[%emt 0:00:00]} 46. Qb1+ {[%emt 0:00:00]} Kh6 {[%emt 0:00:00] aiming for ...Qe5+.} 47. Qb8 {[%emt 0:00:00] Prevents Qe5+} Kh7 {[%emt 0:00:00]} 48. g3 {[%emt 0:00:00]} hxg3+ {[%emt 0:00:00]} 49. Kxg3 {[%emt 0:00:00]} Qd4 {[%emt 0:00:00] ...Qg1+ would be deadly.} 50. Qg8+ {[%emt 0:00:00]} Kh6 {[%emt 0:00:00] Hoping for ...Qg1+.} 51. Qf8+ {[%emt 0:00:00] Weighted Error Value: White=0.08 (flawless) /Black=0.08 (flawless)} 1/2-1/2

[Event "1st FIDE Olympiad DIS 2023"]
[Site "Belgrade"]
[Date "2023.02.03"]
[Round "5.9"]
[White "Kevorkov, Artur"]
[Black "Ibraimov, Kubanychbek"]
[Result "0-1"]
[ECO "C55"]
[WhiteElo "2158"]
[BlackElo "1316"]
[Annotator "TA"]
[PlyCount "78"]
[EventDate "2023.01.30"]
[EventType "team-tourn"]
[EventCountry "SRB"]
[SourceTitle "playchess.com"]
[Source "ChessBase"]
[SourceQuality "1"]
[WhiteTeam "Germany"]
[BlackTeam "Kyrgyzstan"]
[WhiteTeamCountry "GER"]
[BlackTeamCountry "KGZ"]
[TimeControl "40/5400+30:1800+30"]

{[%evp 14,78,48,27,51,49,51,48,64,50,46,45,43,38,44,44,42,43,40,31,39,0,23,-22,0,-44,-3,-47,-54,-88,19,-68,-23,-39,-32,-132,-34,-45,-49,-191,-183,-191,-175,-184,-164,-158,-77,-191,-155,-290,-111,-285,-210,-456,-435,-693,-623,-715,-502,-502,-437,-495,-498,-490,-491,-483,-477]} 1. e4 {[%emt 0:00:03]} e5 {[%emt 0:00:23]} 2. Nf3 {[%emt 0:00:03]} Nc6 {[%emt 0:00:20]} 3. Bc4 {[%emt 0:00:07]} Be7 {[%emt 0:00:48]} 4. O-O {[%emt 0:00:24]} Nf6 {[%emt 0:00:08]} 5. d3 {[%emt 0:00:29]} O-O {[%emt 0:00:17]} 6. c3 {[%emt 0:00:09]} d6 {[%emt 0:00:09]} 7. Nbd2 {[%emt 0:00:26][%cal Bb1d2,Bd2f1,Bf1e3,Be3f5][%mdl 32]} Bg4 {[%emt 0:00:26]} 8. Re1 {[%emt 0:00:15]} a6 {[%emt 0:00:51] C55: Two Knights: 4 d3, 4 d4 exd4 5 e5 and Max Lange Attack.} 9. Bb3 {[%emt 0:00:50]} Rb8 {[%emt 0:01:10]} 10. Nf1 {[%emt 0:00:20]} b5 {[%emt 0:01:19] [#] White is slightly better.} 11. Ne3 $146 {[%emt 0:01:11]} (11. h3 $5 {[%cal Rh3g4]} Bd7 12. d4 $14) ({Predecessor:} 11. h3 Bxf3 12. Qxf3 h6 13. Ng3 Nh7 14. Nf5 Bg5 15. Qg3 Qf6 16. Be3 Ne7 17. Nxe7+ Qxe7 {½-½ Hoogakker,P (1787)-Bennett,D (1383) Guernsey Holiday op 44th 2018 (3)}) 11... Bh5 {[%emt 0:00:55]} 12. h3 {[%emt 0:02:31]} Na5 {[%emt 0:00:25]} 13. Bc2 {[%emt 0:00:31]} c5 {[%emt 0:00:26][%cal Bc7c5,Bc5c4][%mdl 32]} 14. Nf5 {[%emt 0:05:27]} Re8 {[%emt 0:01:40]} 15. g4 {[%emt 0:39:51]} Bg6 {[%emt 0:00:26]} 16. Nxe7+ {[%emt 0:00:23]} (16. N3h4 {with more complications.} Nc6 17. Bb3 Na5 18. Nxe7+ Qxe7 19. g5) 16... Qxe7 {[%emt 0:00:52]} 17. Kh2 {[%emt 0:06:23]} Nc6 {[%emt 0:00:43]} 18. Rg1 {[%emt 0:03:43]} c4 {[%emt 0:02:38]} 19. Bg5 {[%emt 0:19:51]} Qe6 {[%emt 0:06:09]} 20. Qe2 {[%emt 0:07:42]} d5 {[%emt 0:03:34] [#] And now ...cxd3 would win.} 21. Bxf6 {[%emt 0:01:13]} gxf6 {[%emt 0:00:44]} ({Black should play} 21... Qxf6 $17 22. Rge1 (22. exd5 cxd3 23. Bxd3 e4 $19) 22... d4) 22. exd5 {[%emt 0:00:46]} (22. Nh4 $11) 22... Qxd5 {[%emt 0:00:57][%cal Rc4d3]} 23. dxc4 {[%emt 0:00:10]} bxc4 {[%emt 0:00:56] Threatens to win with ...Bxc2.} 24. Rgd1 {[%emt 0:02:18]} (24. Bxg6 $1 $15 hxg6 25. Rgd1) 24... Qc5 {[%emt 0:01:12] Black is more active.} (24... Nd4 $1 $17 25. Bxg6 (25. cxd4 $2 exd4 26. Rxd4 Rxe2 $19) 25... Qxf3 26. Qxf3 {[%mdl 64] Remove Defender} Nxf3+ 27. Kg3 hxg6 28. Kxf3 Rxb2) 25. Bxg6 {[%emt 0:00:29]} hxg6 {[%emt 0:00:47]} 26. Kg2 {[%emt 0:00:52] [#]} ({Better is} 26. Rab1 $15) 26... Nd8 $1 $19 {[%emt 0:01:01]} 27. Rd2 {[%emt 0:03:44]} Ne6 {[%emt 0:00:17] ...Nf4+ would be deadly.} 28. Qe4 {[%emt 0:00:43]} Kg7 {[%emt 0:02:02]} 29. h4 {[%emt 0:01:48]} Rh8 {[%emt 0:00:43]} (29... Rb6 $142 30. Rh1 Reb8) 30. Kg1 {[%emt 0:01:05]} (30. Rad1 $17) 30... Nf4 {[%emt 0:03:54] ...Rbe8 is the strong threat.} 31. Re1 {[%emt 0:00:18]} (31. Rad1 $17) 31... Nd3 $2 {[%emt 0:00:38]} (31... Rbe8 $19 {and Black stays clearly on top. White must now prevent ...Qc8.} 32. Kh2 Rd8) 32. Ree2 $2 {[%emt 0:00:02]} (32. Re3 $17 {was necessary.}) 32... Rbe8 {[%emt 0:02:34] Hoping for ...Qc8.} 33. b4 $2 {[%emt 0:00:23]} (33. Rxd3 cxd3 34. Qxd3) 33... Qc8 {[%emt 0:00:37] Black is clearly winning.} 34. g5 {[%emt 0:01:50]} (34. h5 $142 Nf4 35. Nh2) 34... f5 {[%emt 0:00:35]} 35. Qd5 {[%emt 0:00:28]} Nf4 {[%emt 0:00:36]} 36. Qd6 {[%emt 0:00:01]} Nxe2+ {[%emt 0:00:56]} 37. Rxe2 {[%emt 0:00:01]} e4 {[%emt 0:01:05]} 38. Qf6+ {[%emt 0:00:20]} Kg8 {[%emt 0:00:34]} 39. Ne5 {[%emt 0:01:50][%csl Ge5][%cal Rf6f7]} Qe6 {[%emt 0:00:47] Weighted Error Value: White=0.69/Black=0.45} (39... Rxh4 $2 {is a self mate.} 40. Qxf7+ Kh8 41. Nxg6#) 0-1

[Event "1st FIDE Olympiad DIS 2023"]
[Site "Belgrade"]
[Date "2023.02.03"]
[Round "5.10"]
[White "Sargissyan, Sargis"]
[Black "Larduet Despaigne, Carlos"]
[Result "1-0"]
[ECO "B65"]
[WhiteElo "2221"]
[BlackElo "2277"]
[Annotator "TA"]
[PlyCount "87"]
[EventDate "2023.01.30"]
[EventType "team-tourn"]
[EventCountry "SRB"]
[SourceTitle "playchess.com"]
[Source "ChessBase"]
[SourceQuality "1"]
[WhiteTeam "IPCA"]
[BlackTeam "Cuba"]
[WhiteTeamCountry "ARM"]
[BlackTeamCountry "CUB"]
[TimeControl "40/5400+30:1800+30"]

{[%evp 21,87,22,27,22,31,-22,-21,-49,-27,-24,-32,-12,-26,-20,-37,-31,-26,-34,0,-17,6,9,69,26,56,62,69,60,205,59,486,450,355,343,543,545,549,372,1011,1004,945,335,318,313,403,393,374,397,385,383,398,396,339,346,342,333,332,309,299,308,362,333,368,0,369,369,483,475]} 1. e4 {[%emt 0:00:05]} c5 {[%emt 0:00:31]} 2. Nf3 {[%emt 0:00:06]} d6 {[%emt 0:00:16]} 3. d4 {[%emt 0:00:23]} cxd4 {[%emt 0:00:14]} 4. Nxd4 {[%emt 0:00:05]} Nf6 {[%emt 0:00:11]} 5. Nc3 {[%emt 0:00:06]} Nc6 {[%emt 0:00:09]} 6. Bg5 {[%emt 0:00:39]} e6 {[%emt 0:05:47]} 7. Qd2 {[%emt 0:08:45]} Be7 {[%emt 0:00:11]} 8. O-O-O {[%emt 0:00:13]} O-O {[%emt 0:00:03]} 9. f4 {[%emt 0:09:14]} Nxd4 {[%emt 0:02:27]} 10. Qxd4 {[%emt 0:01:10]} Qa5 {[%emt 0:01:13]} 11. Kb1 {[%emt 0:01:14]} Rd8 {[%emt 0:03:35]} 12. Bd3 {[%emt 0:18:27] B65: Sicilian: Richter-Rauzer: 7...Be7 8 0-0-0 0-0 9 f4 Nxd4.} h6 {[%emt 0:03:23] Dodges h4} 13. Bh4 {[%emt 0:07:18]} (13. h4 $1 $14) 13... e5 $1 $11 {[%emt 0:04:02]} 14. Qf2 {[%emt 0:01:24] The position is equal.} (14. fxe5 {simplifies} dxe5 15. Qa4 Qxa4 16. Nxa4 Bg4 17. Rdf1) 14... exf4 {[%emt 0:11:49] [#] aiming for ...g5.} (14... Ng4 $5 {[%cal Rg4f2]} 15. Qe1 Bxh4 16. Qxh4 exf4 $11) 15. Bxf6 $146 {[%emt 0:07:07]} ({Predecessor:} 15. Nd5 Nxd5 16. exd5 g5 17. Qe2 Bf6 18. Bf2 Qb4 19. c3 Bxc3 20. Be1 f3 21. gxf3 Bxe1 22. Rhxe1 {1-0 Ibarra Chami,L (2452)-El Jawich,A (2314) Olympiad-44 Chennai 2022 (10.2)}) 15... Bxf6 {[%emt 0:00:26]} 16. Nd5 {[%emt 0:00:09]} Be5 {[%emt 0:00:12]} 17. Nxf4 {[%emt 0:01:43]} Bxf4 {[%emt 0:09:15][%mdl 64] [#] Remove Defender} 18. Qxf4 {[%emt 0:00:04]} Be6 {[%emt 0:00:44] Dodges Bc4} 19. a3 {[%emt 0:03:14]} Qc5 {[%emt 0:01:10]} 20. Rhe1 {[%emt 0:04:18][%cal Bh1e1,Be1e3,Be3g3][%mdl 32]} a5 {[%emt 0:00:55]} 21. e5 {[%emt 0:01:22] exd6 is the strong threat.} d5 {[%emt 0:03:40]} (21... Kf8 $11) 22. Re3 {[%emt 0:02:55]} Qe7 {[%emt 0:06:41]} 23. Rg3 {[%emt 0:02:11]} Kh8 {[%emt 0:01:14]} 24. Rf1 {[%emt 0:00:57] White is more active.} Re8 {[%emt 0:11:18] [#] White leaves nothing to chance now.} ({Better is} 24... Rac8 $14) 25. Rff3 $40 {[%emt 0:02:12][%mdl 128] White has some attack.} ({White has to play} 25. Qd4 $1 $18 {[%cal Of1f6] Threatens to win with Rf6!} Rac8 26. Rf6) 25... g5 $2 {[%emt 0:11:41][%mdl 8192]} (25... Rec8 $1 $14) 26. Qd4 $18 {[%emt 0:11:27]} Kg7 {[%emt 0:01:12]} 27. h4 {[%emt 0:00:54][%cal Bh2h4,Bh4g5,Bg5g6][%mdl 32] Black must now prevent hxg5.} Rg8 {[%emt 0:04:04]} (27... Rh8 $142 28. Rf6 Rac8 29. hxg5 hxg5 30. Rxg5+ Kf8) 28. Rf6 {[%emt 0:00:39][%cal Bf3f6,Bf6h6,Bh6h8][%mdl 32]} Kf8 {[%emt 0:00:22]} 29. Rxh6 {[%emt 0:03:06]} Rc8 $2 {[%emt 0:03:15]} (29... g4 30. Qf4 Rc8) 30. hxg5 {[%emt 0:01:30]} Qc5 {[%emt 0:00:07]} 31. Qxc5+ $2 {[%emt 0:01:54]} (31. Qf4 Ke8 32. g6) 31... Rxc5 {[%emt 0:00:02]} 32. g6 {[%emt 0:01:10]} Rg7 {[%emt 0:01:30]} 33. Rh8+ {[%emt 0:04:03]} ({But not} 33. Rf3 Ke7 34. Rh7 Kf8 $18) 33... Ke7 {[%emt 0:00:05]} 34. Rh7 {[%emt 0:00:35]} Kf8 {[%emt 0:01:42]} 35. b4 {[%emt 0:02:38]} axb4 {[%emt 0:00:19]} 36. axb4 {[%emt 0:00:03]} Rc6 {[%emt 0:00:14]} 37. Rxg7 {[%emt 0:00:42]} Kxg7 {[%emt 0:00:02]} 38. gxf7+ {[%emt 0:00:22]} Kxf7 {[%emt 0:00:02][%mdl 4096] Endgame KRB-KRB} 39. Rf3+ {[%emt 0:01:36]} Ke7 {[%emt 0:00:57]} 40. Kb2 {[%emt 0:00:43]} Rc8 {[%emt 0:01:55]} 41. Rg3 {[%emt 0:31:19]} Kf7 {[%emt 0:30:44]} 42. Rf3+ {[%emt 0:00:16]} Ke7 {[%emt 0:00:04]} 43. Rf6 {[%emt 0:00:00]} Rg8 {[%emt 0:00:00]} 44. Rg6 {[%emt 0:00:00] Weighted Error Value: White=0.45/Black=0.58} 1-0

[Event "1st FIDE Olympiad DIS 2023"]
[Site "Belgrade"]
[Date "2023.02.03"]
[Round "5.10"]
[White "Arstanbekov, Dzhanysh"]
[Black "Koessler, Wolfgang"]
[Result "0-1"]
[ECO "A34"]
[WhiteElo "1621"]
[BlackElo "1746"]
[Annotator "NA COMBH"]
[PlyCount "140"]
[EventDate "2023.01.30"]
[EventType "team-tourn"]
[EventCountry "SRB"]
[SourceTitle "playchess.com"]
[Source "ChessBase"]
[SourceQuality "1"]
[WhiteTeam "Kyrgyzstan"]
[BlackTeam "Germany"]
[WhiteTeamCountry "KGZ"]
[BlackTeamCountry "GER"]
[TimeControl "40/5400+30:1800+30"]

1. e4 {[%emt 0:00:09]} c5 {[%emt 0:00:07]} 2. Nf3 {[%emt 0:00:25]} e6 {[%emt 0:00:07]} 3. c4 {[%emt 0:01:02]} b6 {[%emt 0:02:56]} 4. Nc3 {[%emt 0:01:14]} Bb7 {[%emt 0:00:26]} 5. d4 {[%emt 0:00:45]} cxd4 {[%emt 0:00:32]} 6. Nxd4 {[%emt 0:00:06]} a6 {[%emt 0:00:44]} 7. a3 {[%emt 0:04:02]} Qc7 {[%emt 0:02:49]} 8. Be3 {[%emt 0:01:38]} Nf6 {[%emt 0:06:12]} 9. f3 {[%emt 0:02:52]} d6 {[%emt 0:01:39]} 10. Be2 {[%emt 0:00:10]} Be7 {[%emt 0:00:29]} 11. Rc1 {[%emt 0:00:35]} Nbd7 {[%emt 0:01:53]} 12. O-O {[%emt 0:00:33]} Rc8 {[%emt 0:00:46]} 13. b3 {[%emt 0:11:39]} O-O {[%emt 0:03:07]} 14. a4 {[%emt 0:00:52]} Qb8 {[%emt 0:02:03]} 15. Bd3 {[%emt 0:06:20]} Qa8 {[%emt 0:05:54]} 16. Bb1 {[%emt 0:00:49]} Rfe8 {[%emt 0:19:47]} 17. Qd2 {[%emt 0:02:52]} d5 {[%emt 0:10:06]} 18. exd5 {[%emt 0:01:18]} exd5 {[%emt 0:00:20]} 19. Nxd5 {[%emt 0:01:25]} Nxd5 {[%emt 0:03:51]} 20. cxd5 {[%emt 0:00:06]} Bxd5 {[%emt 0:08:04]} 21. Rxc8 {[%emt 0:06:38]} Rxc8 {[%emt 0:00:17]} 22. Nf5 {[%emt 0:00:51]} Bf6 {[%emt 0:01:19]} 23. Bd4 {[%emt 0:05:03]} Kf8 {[%emt 0:07:23]} 24. Qb4+ {[%emt 0:03:35]} Nc5 {[%emt 0:06:53]} 25. Bxf6 {[%emt 0:03:23]} gxf6 {[%emt 0:00:46]} 26. Qd4 {[%emt 0:05:43]} Qc6 {[%emt 0:01:11]} 27. Qf4 {[%emt 0:01:10]} Ne6 {[%emt 0:01:09]} 28. Qh6+ {[%emt 0:00:10]} Ke8 {[%emt 0:00:20]} 29. Qxf6 {[%emt 0:00:10]} Qc5+ {[%emt 0:01:07]} 30. Kh1 {[%emt 0:00:24]} Bxb3 {[%emt 0:01:12]} 31. Re1 {[%emt 0:09:32]} Qb4 {[%emt 0:01:16]} 32. Rg1 {[%emt 0:00:54]} Rc7 {[%emt 0:04:14]} 33. Qh8+ {[%emt 0:03:12]} Nf8 {[%emt 0:01:33]} 34. Qe5+ {[%emt 0:00:40]} Ne6 {[%emt 0:00:14]} 35. Ng7+ {[%emt 0:01:41]} Kd8 {[%emt 0:00:07]} 36. Nxe6+ {[%emt 0:01:36]} fxe6 {[%emt 0:01:23]} 37. Qh8+ {[%emt 0:00:58]} Kd7 {[%emt 0:00:46]} 38. Be4 {[%emt 0:04:33]} Qxa4 {[%emt 0:01:59]} 39. Qxh7+ {[%emt 0:01:17]} Kd6 {[%emt 0:00:07]} 40. Qh6 {[%emt 0:01:09]} Qd4 {[%emt 0:02:31]} 41. Qf8+ {[%emt 0:00:27]} Kd7 {[%emt 0:04:17]} 42. Qf4 {[%emt 0:03:00]} Qc3 {[%emt 0:03:42]} 43. Qf7+ {[%emt 0:01:19]} Kd6 {[%emt 0:00:50]} 44. Qf8+ {[%emt 0:00:05]} Kd7 {[%emt 0:00:35]} 45. Bg6 {[%emt 0:00:28]} Rc8 {[%emt 0:02:01]} 46. Qf7+ {[%emt 0:00:03]} Kc6 {[%emt 0:01:36]} 47. Be4+ {[%emt 0:00:17]} Kb5 {[%emt 0:01:36]} 48. h3 {[%emt 0:00:28]} a5 {[%emt 0:02:52]} 49. Qd7+ {[%emt 0:00:13]} Kb4 {[%emt 0:00:32]} 50. Rb1 {[%emt 0:03:45]} b5 {[%emt 0:04:21]} 51. Bd3 {[%emt 0:02:26]} Rc5 {[%emt 0:01:03]} 52. Be2 {[%emt 0:03:49]} a4 {[%emt 0:01:05]} 53. Bd1 {[%emt 0:01:26]} Ka3 {[%emt 0:02:41]} 54. Bxb3 {[%emt 0:02:22]} axb3 {[%emt 0:00:07]} 55. Qa7+ {[%emt 0:00:50]} Kb4 {[%emt 0:00:05]} 56. Ra1 {[%emt 0:04:55]} b2 {[%emt 0:01:04]} 57. Qa5+ {[%emt 0:00:17]} Kc4 {[%emt 0:00:09]} 58. Qa2+ {[%emt 0:01:16]} Qb3 {[%emt 0:01:33]} 59. Qb1 {[%emt 0:02:14]} bxa1=Q {[%emt 0:04:14]} 60. Qxa1 {[%emt 0:00:23]} b4 {[%emt 0:00:18]} 61. Qa6+ {[%emt 0:02:45]} Kc3 {[%emt 0:00:10]} 62. Qe2 {[%emt 0:00:45]} Rd5 {[%emt 0:00:41]} 63. Kh2 {[%emt 0:00:43]} Rd2 {[%emt 0:00:55]} 64. Qe5+ {[%emt 0:00:52]} Kc2 {[%emt 0:00:19]} 65. Qe4+ {[%emt 0:01:14]} Kd1 {[%emt 0:00:24]} 66. Qe5 {[%emt 0:01:43]} Qb2 {[%emt 0:00:33]} 67. Qg5 {[%emt 0:00:19]} b3 {[%emt 0:00:43]} 68. h4 {[%emt 0:00:09]} Rxg2+ {[%emt 0:00:20]} 69. Qxg2 {[%emt 0:00:02]} Qxg2+ {[%emt 0:00:06]} 70. Kxg2 {[%emt 0:00:31]} b2 {[%emt 0:00:09]} 0-1